fUST/lending_fUST_20260104
["ID","MTS","AMOUNT","RATE_DAILY","PERIOD"]
[400395415,1767509409460,13.88497005,7.711e-05,2]
[400395416,1767509409489,338.71502995,7.711e-05,2]
[400395417,1767509409862,411.36,8.008e-05,2]
[400395418,1767509410281,470.13,8.304e-05,2]
[400395419,1767509410724,528.9,8.601e-05,2]
[400395420,1767509411191,587.66,8.898e-05,2]
[400395422,1767509415410,5000.0,0.00011793,2]
[400395450,1767509431934,-653.89536377,0.00011793,2]
[400395522,1767509438427,172.39451063,0.00011792,2]
[400395529,1767509438493,500.0,0.00011792,2]
[400395534,1767509438533,500.0,0.00011792,2]
[400395538,1767509438571,500.33981239,0.00011792,2]
[400395548,1767509438656,500.0,0.00011792,2]
[400395560,1767509438787,490.51064703,0.00011792,2]
[400395561,1767509438818,9.48935297,0.00011792,2]
[400395562,1767509439035,500.0,0.00011792,2]
[400395564,1767509439369,500.0,0.00011792,2]
[400395565,1767509439637,500.0,0.00011792,2]
[400395566,1767509439720,5000.0,0.00011793,2]
[400395567,1767509439769,500.0,0.00011792,2]
[400395568,1767509439810,500.0,0.00011792,2]
[400395569,1767509439867,500.0,0.00011792,2]
[400395570,1767509439902,500.0,0.00011792,2]
[400395571,1767509439958,500.0,0.00011792,2]
[400395573,1767509440008,500.0,0.00011792,2]
[400395579,1767509440308,-2231.86411234,0.00011793,2]
[400395580,1767509440375,490.52064703,0.00011792,2]
[400395590,1767509445057,-9.47935297,0.00011792,2]
[400395591,1767509445068,-5494.66199296,0.00011793,2]
[400395592,1767509445079,-25000.0,0.00011793,2]
[400395605,1767509447291,-9152.5143196,0.00011793,2]
[400395606,1767509447303,-300.0,0.00011793,2]
[400395607,1767509458170,-496.47,0.00011675,2]
[400395608,1767509462508,-189.20691633,0.00011675,2]
[400395609,1767509464089,-579.5,0.00011558,2]
[400395612,1767509480548,167.4,8.21e-05,2]
[400395613,1767509480956,209.25,8.552e-05,2]
[400395614,1767509481371,251.1,8.894e-05,2]
[400395615,1767509481854,292.95,9.236e-05,2]
[400395616,1767509482250,334.8,9.578e-05,2]
[400395617,1767509482677,376.65,9.92e-05,2]
[400395618,1767509483088,418.5,0.00010262,2]
[400395619,1767509484874,40967.1535947,0.00010802,2]
[400395620,1767509550948,174.77,8.909e-05,2]
[400395621,1767509551347,203.89,9.252e-05,2]
[400395622,1767509551751,233.02,9.594e-05,2]
[400395623,1767509552160,262.15,9.937e-05,2]
[400395624,1767509552575,291.28,0.0001028,2]
[400395625,1767509648712,169.4136825,5.396e-05,2]
[400395626,1767509655400,2794.79804582,0.00011431,2]
[400395627,1767509664207,5000.0,0.00011431,2]
[400395628,1767509688291,5000.0,0.00011431,2]
[400395632,1767509711690,5000.0,0.00011431,2]
[400395688,1767509735236,3804.60901556,0.00011431,2]
[400395701,1767509741194,-800.0,0.00011444,2]
[400395703,1767509741226,-356.22581597,0.00011617,2]
[400395704,1767509741265,-300.0,0.00011791,2]
[400395706,1767509741299,-352.0,0.00011791,2]
[400395707,1767509741331,-300.0,0.00011791,2]
[400395709,1767509741363,-2286.32150755,0.00011792,2]
[400395710,1767509741399,-500.0,0.00011792,2]
[400395714,1767509741618,-500.0,0.00011792,2]
[400395716,1767509741657,-500.0,0.00011792,2]
[400395717,1767509741692,-500.0,0.00011792,2]
[400395719,1767509741726,-500.0,0.00011792,2]
[400395722,1767509741869,-500.0,0.00011792,2]
[400395724,1767509741904,-500.0,0.00011792,2]
[400395725,1767509741940,-500.0,0.00011792,2]
[400395727,1767509741974,-500.0,0.00011792,2]
[400395728,1767509742008,-500.0,0.00011792,2]
[400395730,1767509742042,-500.0,0.00011792,2]
[400395735,1767509742511,-500.0,0.00011792,2]
[400395737,1767509742570,-500.0,0.00011792,2]
[400395739,1767509742623,-500.0,0.00011792,2]
[400395740,1767509742677,-500.0,0.00011792,2]
[400395742,1767509742726,-500.0,0.00011792,2]
[400395744,1767509742776,-301.17896416,0.00011792,2]
[400395746,1767509742852,-457.13408194,0.00011792,2]
[400395748,1767509742929,-500.0,0.00011792,2]
[400395750,1767509742989,-500.0,0.00011792,2]
[400395752,1767509743044,-500.0,0.00011792,2]
[400395758,1767509747505,-500.0,0.00011792,2]
[400395759,1767509747542,-500.0,0.00011792,2]
[400395760,1767509747583,-500.0,0.00011792,2]
[400395761,1767509747619,-211.15665382,0.00011792,2]
[400395789,1767509762589,300.0,0.00011792,2]
[400396188,1767509874719,2658.380862,0.00011225,2]
[400396189,1767509882378,300.0,0.00011792,2]
[400396190,1767509899863,2480.95502995,0.00011672,2]
[400396191,1767509918825,999.0,0.00011152,2]
[400396192,1767509946723,495.6797629,0.00011079,2]
[400396193,1767509954430,166.88719039,0.0001,14]
[400396199,1767510064250,153.28558987,0.0003,120]
[400396330,1767510210538,204.5498734,0.00010871,2]
[400396460,1767510289059,-5000.0,0.00011674,2]
[400396461,1767510289084,-349.10129965,0.00011733,2]
[400396462,1767510289108,-300.0,0.00011792,2]
[400396463,1767510289137,-4350.89870035,0.00011793,2]
[400396556,1767510322745,8133.89317331,0.00010871,2]
[400396557,1767510322769,2820.51034349,0.00010871,2]
[400396613,1767510339256,-151.0,0.00011786,2]
[400396614,1767510339280,-151.0,0.00011786,2]
[400396615,1767510339302,-156.48658679,0.00011786,2]
[400396616,1767510339325,-500.82274639,0.00011792,2]
[400396618,1767510339362,-500.0,0.00011792,2]
[400396619,1767510339390,-500.0,0.00011792,2]
[400396620,1767510339416,-500.0,0.00011792,2]
[400396621,1767510339441,-500.0,0.00011792,2]
[400396622,1767510339465,-500.0,0.00011792,2]
[400396623,1767510339491,-500.0,0.00011792,2]
[400396624,1767510339516,-500.0,0.00011792,2]
[400396625,1767510339540,-307.36523381,0.00011792,2]
[400396626,1767510339565,-500.0,0.00011792,2]
[400396627,1767510339590,-500.0,0.00011792,2]
[400396628,1767510339615,-500.0,0.00011792,2]
[400396629,1767510339638,-500.0,0.00011792,2]
[400396630,1767510339663,-274.96067366,0.00011792,2]
[400396631,1767510339687,-500.0,0.00011792,2]
[400396633,1767510339711,-500.0,0.00011792,2]
[400396634,1767510339734,-300.0,0.00011792,2]
[400396635,1767510339765,-1658.36475935,0.00011793,2]
[400396656,1767510349495,533.5029129,0.00011139,2]
[400396713,1767510366472,1000.0,0.0003013,120]
[400396796,1767510379605,507.5372956,0.00010949,2]
[400397215,1767510483138,193.22,8.991e-05,2]
[400397217,1767510483382,193.22,8.991e-05,2]
[400397218,1767510483637,193.21,8.991e-05,2]
[400397398,1767510548797,3045.41065533,0.00011431,2]
[400397427,1767510565258,410.94954986,0.00011431,2]
[400397473,1767510589173,-348.58538519,0.00011579,2]
[400397474,1767510589205,-1907.80404464,0.000116,2]
[400397475,1767510589240,-500.0,0.00011692,2]
[400397476,1767510589274,-500.0,0.00011692,2]
[400397477,1767510589308,-500.0,0.00011692,2]
[400397478,1767510589341,-414.04146602,0.00011692,2]
[400397479,1767510589374,-500.0,0.00011692,2]
[400397480,1767510589404,-73.04146678,0.00011692,2]
[400397481,1767510590033,-513.06527474,0.00011692,2]
[400397482,1767510590065,-218.07880231,0.00011692,2]
[400397483,1767510590097,-500.0,0.00011692,2]
[400397484,1767510590128,-500.0,0.00011692,2]
[400397485,1767510590159,-350.23786867,0.00011692,2]
[400397486,1767510590189,-1002.0,0.00011692,2]
[400397487,1767510590220,-300.0,0.00011692,2]
[400397499,1767510601910,300.0,0.00011692,2]
[400397508,1767510604549,1200.0,0.00011692,2]
[400397545,1767510609247,500.0,0.00011692,2]
[400397564,1767510616810,500.0,0.00011692,2]
[400397565,1767510616856,500.0,0.00011692,2]
[400397566,1767510616897,233.24610856,0.00011692,2]
[400397567,1767510616926,92.96762338,0.00011692,2]
[400397569,1767510617009,500.0,0.00011692,2]
[400397571,1767510617085,500.0,0.00011692,2]
[400397572,1767510617124,500.0,0.00011692,2]
[400397573,1767510617390,500.0,0.00011692,2]
[400397576,1767510617765,500.0,0.00011692,2]
[400397578,1767510618185,500.0,0.00011692,2]
[400397674,1767510634629,500.0,0.00011692,2]
[400397675,1767510634752,450.0,0.00011692,2]
[400397676,1767510634842,500.0,0.00011692,2]
[400397678,1767510635106,500.0,0.00011692,2]
[400397679,1767510635185,500.0,0.00011692,2]
[400397681,1767510635295,500.0,0.00011692,2]
[400397682,1767510635622,500.0,0.00011692,2]
[400397691,1767510638053,-538.362,0.00011693,2]
[400397693,1767510638065,-413.9800501,0.00011693,2]
[400397695,1767510638077,-1134.55558855,0.00011693,2]
[400397697,1767510638111,-3635.17447835,0.00011693,2]
[400397719,1767510640389,-3e-08,0.00011693,2]
[400397720,1767510640625,-2525.42785205,0.00011693,2]
[400397954,1767510646116,-794.2036942,0.00011693,2]
[400397973,1767510646291,-1804.01733172,0.00011693,2]
[400398364,1767510662454,300.0,0.00011692,2]
[400398743,1767510677764,562.57170871,0.00011479,2]
[400398768,1767510680711,2248.03654801,0.00011397,2]
[400398812,1767510703183,189.83,0.00011459,2]
[400398846,1767510722620,300.0,0.00011692,2]
[400398860,1767510730418,153.00750786,0.00011692,2]
[400398869,1767510734038,155.0,0.0001,2]
[400398970,1767510782384,300.0,0.00011692,2]
[400399026,1767510798893,500.0,0.00011692,2]
[400399027,1767510798923,500.0,0.00011692,2]
[400399028,1767510798953,500.0,0.00011692,2]
[400399030,1767510798994,500.0,0.00011692,2]
[400399032,1767510799216,341.56423542,0.00011692,2]
[400399033,1767510799242,158.43576458,0.00011692,2]
[400399034,1767510799278,500.0,0.00011692,2]
[400399037,1767510799570,500.0,0.00011692,2]
[400399039,1767510799896,334.02136753,0.00011692,2]
[400399044,1767510804449,500.0,0.00011692,2]
[400399045,1767510804493,500.0,0.00011692,2]
[400399046,1767510804547,620.0,0.00011692,2]
[400399069,1767510808773,500.0,0.00011692,2]
[400399071,1767510808806,587.62440222,0.00011692,2]
[400399072,1767510808842,500.0,0.00011692,2]
[400399073,1767510808883,500.0,0.00011692,2]
[400399074,1767510808946,500.0,0.00011692,2]
[400399075,1767510808986,500.0,0.00011692,2]
[400399076,1767510809022,500.0,0.00011692,2]
[400399082,1767510815153,500.0,0.00011692,2]
[400399084,1767510816670,500.0,0.00011692,2]
[400399088,1767510818781,500.0,0.00011692,2]
[400399089,1767510818813,500.0,0.00011692,2]
[400399090,1767510818859,500.0,0.00011692,2]
[400399091,1767510819033,500.0,0.00011692,2]
[400399092,1767510819067,299.92846567,0.00011692,2]
[400399093,1767510819095,200.07153433,0.00011692,2]
[400399094,1767510819134,500.0,0.00011692,2]
[400399095,1767510819165,500.0,0.00011692,2]
[400399096,1767510819199,500.0,0.00011692,2]
[400399097,1767510819233,178.32571678,0.00011692,2]
[400399099,1767510819266,500.0,0.00011692,2]
[400399100,1767510819301,649.99999999,0.00011692,2]
[400399101,1767510819488,500.0,0.00011692,2]
[400399103,1767510819669,500.0,0.00011692,2]
[400399140,1767510842330,300.0,0.00011692,2]
[400399159,1767510867911,987.26440868,0.00011517,2]
[400399160,1767510870737,237.85104917,0.00011692,2]
[400399161,1767510870771,3945.1085771,0.00011517,2]
[400399164,1767510873635,354.68801543,0.00011397,2]
[400399167,1767510876868,146.70069852,0.00011638,2]
[400399168,1767510876893,653.29930148,0.00011638,2]
[400399169,1767510876927,800.0,0.00011524,2]
[400399182,1767510902267,300.0,0.00011692,2]
[400399183,1767510903089,388.0,0.00011692,2]
[400399335,1767510921365,500.0,0.00011692,2]
[400399372,1767510925297,500.0,0.00011692,2]
[400399374,1767510925366,500.0,0.00011692,2]
[400399375,1767510925425,500.0,0.00011692,2]
[400399376,1767510925494,204.81391505,0.00011692,2]
[400399377,1767510925554,500.0,0.00011692,2]
[400399379,1767510925645,500.0,0.00011692,2]
[400399381,1767510925729,500.0,0.00011692,2]
[400399492,1767510954538,1008.0,0.0001169,2]
[400399495,1767510962332,300.0,0.00011692,2]
[400399548,1767511022797,272.0,0.00011692,2]
[400399864,1767511170969,457.20596556,0.00011309,2]
[400399866,1767511173448,1828.82386225,0.00011309,2]
[400399867,1767511176387,287.86695566,0.00011309,2]
[400399868,1767511176419,3822.87188072,0.00011309,2]
[400399869,1767511187449,6177.13811928,0.00010825,2]
[400399870,1767511187480,1271.33171222,0.00010825,2]
[400399972,1767511284978,247.40654641,0.00011298,2]
[400399973,1767511289120,989.62618562,0.00011298,2]
[400399974,1767511292995,2226.65891765,0.00011298,2]
[400399975,1767511295999,3958.50474249,0.00011298,2]
[400399979,1767511298857,2577.81360783,0.00011298,2]
[400399980,1767511298883,3607.35005231,0.00011298,2]
[400399994,1767511302232,6392.65994769,0.00011298,2]
[400399996,1767511302260,2505.06908724,0.00011298,2]
[400400002,1767511303125,189.83,0.00011459,2]
[400400035,1767511363241,-743.88234365,0.00011693,2]
[400400036,1767511365875,-221.00907791,0.00011693,2]
[400400042,1767511387290,7305.11091276,0.00011593,2]
[400400043,1767511387322,10000.01,0.00011593,2]
[400400044,1767511387354,10000.01,0.00011593,2]
[400400045,1767511387387,10000.01,0.00011593,2]
[400400046,1767511387418,10000.01,0.00011593,2]
[400400047,1767511387450,10000.01,0.00011593,2]
[400400048,1767511387482,10000.01,0.00011593,2]
[400400049,1767511387513,10000.01,0.00011593,2]
[400400050,1767511387544,10000.01,0.00011593,2]
[400400058,1767511406175,206.33,8.056e-05,2]
[400400059,1767511406547,309.49,8.422e-05,2]
[400400060,1767511406982,412.66,8.788e-05,2]
[400400061,1767511407376,515.82,9.155e-05,2]
[400400062,1767511407794,618.99,9.521e-05,2]
[400400063,1767511408442,722.15,9.887e-05,2]
[400400064,1767511408701,825.32,0.00010253,2]
[400400065,1767511409161,928.48,0.00010619,2]
[400400066,1767511409555,1031.65,0.00010986,2]
[400400069,1767511442528,300.0,0.00011592,2]
[400400070,1767511471859,575.26414974,0.00011298,2]
[400400071,1767511474330,2301.05659895,0.00011298,2]
[400400072,1767511477100,1252.79925131,0.00011298,2]
[400400073,1767511477127,3919.40071898,0.00011298,2]
[400400074,1767511480401,189.75,7.144e-05,2]
[400400075,1767511480803,284.63,7.468e-05,2]
[400400076,1767511481221,379.51,7.793e-05,2]
[400400077,1767511481637,474.39,8.118e-05,2]
[400400078,1767511482065,569.26,8.442e-05,2]
[400400079,1767511482500,664.14,8.767e-05,2]
[400400080,1767511482898,759.02,9.092e-05,2]
[400400081,1767511483300,853.9,9.417e-05,2]
[400400082,1767511483693,948.77,9.741e-05,2]
[400400083,1767511493354,421.61125425,0.00011592,2]
[400400084,1767511493386,535.62802677,0.00011592,2]
[400400085,1767511493411,65.78087323,0.00011592,2]
[400400086,1767511494478,420.87894256,0.00011592,2]
[400400087,1767511494510,356.09043501,0.00011592,2]
[400400088,1767511494541,500.0,0.00011592,2]
[400400089,1767511494576,500.0,0.00011592,2]
[400400090,1767511494611,515.34849972,0.00011592,2]
[400400091,1767511494646,265.0,0.00011592,2]
[400400092,1767511501737,300.0,0.00011592,2]
[400400093,1767511503830,300.0,0.00011592,2]
[400400094,1767511503902,1200.0,0.00011592,2]
[400400126,1767511535354,800.0,0.00011375,2]
[400400136,1767511556679,178.02,8.891e-05,2]
[400400138,1767511557067,207.7,9.233e-05,2]
[400400139,1767511557501,237.37,9.575e-05,2]
[400400140,1767511557901,267.04,9.917e-05,2]
[400400141,1767511558344,296.71,0.00010259,2]
[400400142,1767511559785,8013.17,0.00010915,2]
[400400143,1767511559814,30514.7505155,0.00010915,2]
[400400146,1767511562582,189.91526602,0.00011296,2]
[400400161,1767511575004,-412.576898,0.00011593,2]
[400400162,1767511576582,-502.00548888,0.00011593,2]
[400400169,1767511586617,4541.77885664,0.00011593,2]
[400400199,1767511595411,914.58238688,0.00011593,2]
[400400201,1767511607956,161.84,0.0001,2]
[400400206,1767511610465,161.84,0.000102,2]
[400400207,1767511612416,161.84,0.000104,2]
[400400208,1767511614336,161.84,0.000106,2]
[400400212,1767511616288,161.84,0.000108,2]
[400400230,1767511649373,-315.35540128,0.00011593,2]
[400400233,1767511652695,-246.38258082,0.00011593,2]
[400400235,1767511654704,-277.39278668,0.00011593,2]
[400400236,1767511656883,-208.60778142,0.00011593,2]
[400400239,1767511659500,-205.74623607,0.00011593,2]
[400400244,1767511662833,-238.88394758,0.00011593,2]
[400400247,1767511666042,-349.04958309,0.00011593,2]
[400400250,1767511667568,-151.59812463,0.00011593,2]
[400400262,1767511689907,398.62493358,0.00011592,2]
[400400267,1767511693176,-300.0059905,0.00011593,2]
[400400270,1767511694952,2114.61658304,0.0001,2]
[400400332,1767511715923,500.0,0.00011592,2]
[400400333,1767511715969,500.0,0.00011592,2]
[400400334,1767511716006,221.20723986,0.00011592,2]
[400400335,1767511716036,278.79276014,0.00011592,2]
[400400336,1767511716089,500.0,0.00011592,2]
[400400337,1767511716253,500.0,0.00011592,2]
[400400338,1767511716297,500.0,0.00011592,2]
[400400340,1767511716336,500.0,0.00011592,2]
[400400342,1767511716406,500.0,0.00011592,2]
[400400343,1767511716489,500.0,0.00011592,2]
[400400344,1767511716578,500.0,0.00011592,2]
[400400346,1767511716966,500.0,0.00011592,2]
[400400347,1767511717007,500.0,0.00011592,2]
[400400349,1767511717295,500.0,0.00011592,2]
[400400362,1767511720555,3007.10921804,0.0001,2]
[400400383,1767511736047,500.0,0.00011592,2]
[400400384,1767511736091,399.62719433,0.00011592,2]
[400400385,1767511736132,500.0,0.00011592,2]
[400400386,1767511736407,314.48082749,0.00011592,2]
[400400387,1767511736439,185.51917251,0.00011592,2]
[400400388,1767511736588,500.0,0.00011592,2]
[400400389,1767511736682,500.0,0.00011592,2]
[400400390,1767511736743,500.0,0.00011592,2]
[400400391,1767511736957,500.0,0.00011592,2]
[400400393,1767511751073,500.0,0.00011592,2]
[400400394,1767511751127,250.0,0.00011592,2]
[400400404,1767511813974,250.0,0.00011593,2]
[400400406,1767511814665,250.0,0.00011593,2]
[400400407,1767511814798,2674.60743027,0.00011593,2]
[400400408,1767511815309,250.0,0.00011593,2]
[400400409,1767511816079,250.0,0.00011593,2]
[400400410,1767511816179,393.59375882,0.00011593,2]
[400400411,1767511816736,250.0,0.00011593,2]
[400400412,1767511817755,250.0,0.00011593,2]
[400400413,1767511818728,250.0,0.00011593,2]
[400400414,1767511819361,250.0,0.00011593,2]
[400400415,1767511820086,250.0,0.00011593,2]
[400400431,1767511832230,-4986.70812462,0.00011593,2]
[400400432,1767511832242,-534.64380724,0.00011593,2]
[400400433,1767511832253,-717.75784417,0.00011593,2]
[400400434,1767511832267,-16451.52256059,0.00011593,2]
[400400435,1767511832279,-2600.0,0.00011593,2]
[400400436,1767511832289,-2750.0,0.00011593,2]
[400400447,1767511838348,-9527.41048424,0.00011593,2]
[400400448,1767511838360,-7170.23279795,0.00011593,2]
[400400449,1767511838372,-2172.22358985,0.00011593,2]
[400400450,1767511838383,-1205.24441864,0.00011593,2]
[400400451,1767511838395,-745.20190271,0.00011593,2]
[400400452,1767511838419,-479.50755848,0.00011593,2]
[400400453,1767511838431,-689.99231085,0.00011593,2]
[400400466,1767511840579,-10854.75329297,0.00011593,2]
[400400467,1767511840591,-47289.45069377,0.00011593,2]
[400400468,1767511840715,-3e-08,0.00011593,2]
[400400469,1767511840726,-7338.35907695,0.00011593,2]
[400400470,1767511840737,-671.02184634,0.00011593,2]
[400400499,1767511846548,-879.9514622,0.00011593,2]
[400400500,1767511846577,-510.61843461,0.00011593,2]
[400400501,1767511846588,-468.48106372,0.00011593,2]
[400400502,1767511846600,-66570.14521759,0.00011593,2]
[400400508,1767511847822,-11874.6777346,0.00011593,2]
[400400509,1767511847835,-5465.64002953,0.00011593,2]
[400400510,1767511847847,-3669.95571871,0.00011593,2]
[400400511,1767511847862,-583.0,0.00011593,2]
[400400512,1767511847872,-350.6137973,0.00011595,2]
[400400513,1767511847881,-800.0,0.00011597,2]
[400400514,1767511847891,-811.8762634,0.00011603,2]
[400400515,1767511847901,-187.60385006,0.00011646,2]
[400400516,1767511847910,-240.00397434,0.00011692,2]
[400400517,1767511847919,-4556.6824964,0.00011724,2]
[400400518,1767511847930,-8094.27854214,0.00011724,2]
[400400519,1767511848011,-1313.91167156,0.00011724,2]
[400400528,1767511859351,10000.0,0.00011,2]
[400400531,1767511866341,1993.01644157,0.00011724,2]
[400400532,1767511880855,-4270.20249562,0.00011893,2]
[400400533,1767511892138,168.51,8.343e-05,2]
[400400536,1767511896786,-414.48462278,0.00011893,2]
[400400537,1767511896823,-438.66966959,0.00011893,2]
[400400538,1767511915008,-225.75054393,0.00011959,2]
[400400539,1767511915040,-264.3735124,0.00011959,2]
[400400575,1767511985608,9019.76188734,0.00011493,2]
[400400576,1767511985642,10000.01,0.00011493,2]
[400400577,1767511985672,10000.01,0.00011493,2]
[400400578,1767511985702,10000.01,0.00011493,2]
[400400579,1767511985731,10000.01,0.00011493,2]
[400400580,1767511985760,10000.01,0.00011493,2]
[400400581,1767511985789,10000.01,0.00011493,2]
[400400582,1767511985818,10000.01,0.00011493,2]
[400400583,1767511985846,10000.01,0.00011493,2]
[400400584,1767511985875,10000.01,0.00011493,2]
[400400586,1767511995956,3010.69404974,0.00011431,2]
[400400590,1767512020538,1178.14,0.00011431,2]
[400400592,1767512023708,240.01,7.65e-05,2]
[400400593,1767512023992,360.01,7.998e-05,2]
[400400594,1767512024405,480.02,8.346e-05,2]
[400400595,1767512024805,600.02,8.694e-05,2]
[400400596,1767512025225,720.03,9.041e-05,2]
[400400597,1767512025660,840.03,9.389e-05,2]
[400400598,1767512026068,960.04,9.737e-05,2]
[400400599,1767512026508,1080.04,0.00010084,2]
[400400600,1767512026900,1200.05,0.00010432,2]
[400400601,1767512028658,3519.76,0.00011493,2]
[400400602,1767512028682,1480.24,0.00011493,2]
[400400603,1767512042403,300.0,0.00011492,2]
[400400605,1767512051856,5000.0,0.00011493,2]
[400400606,1767512067781,2480.42667035,0.00011493,2]
[400400607,1767512071777,366.85012872,0.00011492,2]
[400400608,1767512071949,372.49320093,0.00011492,2]
[400400609,1767512071985,127.50679907,0.00011492,2]
[400400610,1767512072094,500.0,0.00011492,2]
[400400611,1767512072153,500.0,0.00011492,2]
[400400612,1767512072744,500.0,0.00011492,2]
[400400613,1767512072782,500.0,0.00011492,2]
[400400614,1767512072844,500.0,0.00011492,2]
[400400615,1767512072918,500.0,0.00011492,2]
[400400616,1767512073008,487.20248945,0.00011492,2]
[400400617,1767512074551,500.0,0.00011492,2]
[400400618,1767512074591,500.0,0.00011492,2]
[400400619,1767512074636,500.0,0.00011492,2]
[400400620,1767512074869,500.0,0.00011492,2]
[400400621,1767512074903,500.0,0.00011492,2]
[400400622,1767512074936,500.0,0.00011492,2]
[400400623,1767512074983,500.0,0.00011492,2]
[400400624,1767512075021,500.0,0.00011492,2]
[400400625,1767512075061,500.0,0.00011492,2]
[400400626,1767512075101,500.0,0.00011492,2]
[400400627,1767512075131,500.0,0.00011492,2]
[400400628,1767512075171,500.0,0.00011492,2]
[400400629,1767512075202,385.30071148,0.00011492,2]
[400400630,1767512075226,114.69928852,0.00011492,2]
[400400631,1767512075357,500.0,0.00011492,2]
[400400632,1767512075392,500.0,0.00011492,2]
[400400633,1767512075432,500.0,0.00011492,2]
[400400634,1767512075468,500.0,0.00011492,2]
[400400635,1767512075500,500.0,0.00011492,2]
[400400636,1767512075546,500.0,0.00011492,2]
[400400637,1767512075579,500.0,0.00011492,2]
[400400638,1767512075617,637.2471106,0.00011492,2]
[400400639,1767512075649,500.0,0.00011492,2]
[400400640,1767512075686,500.0,0.00011492,2]
[400400641,1767512075719,500.0,0.00011492,2]
[400400642,1767512075754,500.0,0.00011492,2]
[400400643,1767512075792,500.0,0.00011492,2]
[400400644,1767512075822,500.0,0.00011492,2]
[400400645,1767512075868,500.0,0.00011492,2]
[400400646,1767512075919,500.0,0.00011492,2]
[400400647,1767512076006,500.0,0.00011492,2]
[400400648,1767512076071,182.20439817,0.00011492,2]
[400400649,1767512076142,500.0,0.00011492,2]
[400400650,1767512076208,500.0,0.00011492,2]
[400400651,1767512076262,65.85920271,0.00011492,2]
[400400652,1767512076304,434.14079729,0.00011492,2]
[400400653,1767512076370,500.0,0.00011492,2]
[400400654,1767512076431,500.0,0.00011492,2]
[400400655,1767512076547,500.0,0.00011492,2]
[400400656,1767512076620,500.0,0.00011492,2]
[400400657,1767512076697,500.0,0.00011492,2]
[400400658,1767512076752,500.0,0.00011492,2]
[400400660,1767512076991,500.0,0.00011492,2]
[400400661,1767512077032,500.0,0.00011492,2]
[400400662,1767512077069,500.0,0.00011492,2]
[400400663,1767512077110,500.0,0.00011492,2]
[400400664,1767512077156,500.0,0.00011492,2]
[400400665,1767512077194,500.0,0.00011492,2]
[400400666,1767512077242,3565.86920271,0.00011493,2]
[400400667,1767512077269,1434.13079729,0.00011493,2]
[400400668,1767512077303,500.0,0.00011492,2]
[400400669,1767512077381,500.0,0.00011492,2]
[400400670,1767512087095,500.0,0.00011492,2]
[400400671,1767512087357,500.0,0.00011492,2]
[400400672,1767512087460,500.0,0.00011492,2]
[400400673,1767512087499,500.0,0.00011492,2]
[400400674,1767512087674,500.0,0.00011492,2]
[400400675,1767512087726,350.0,0.00011492,2]
[400400677,1767512099152,4715.87920271,0.00011493,2]